{"text_format":"1","workbook":"xlsx","n_sheets":4,"sheets":["Ark1","Ark2","Ark3","Ark4"],"not_rendered":{"charts":0,"images":52,"macros":1,"external_links":0,"defined_names":3,"comments":0,"pivot_tables":0},"unopened":[],"bounds":{"document_bytes":16777216,"sheet_cells":100000,"rows_first":2000,"rows_last":500,"rows_between":2000,"halvings":0,"cell_chars":16384,"cell_head_chars":4096},"cells_cut":0,"cells_raw":0,"read":"whole","date_system":"1900"}

{"sheet":"Ark1","index":0,"n_rows":169,"n_cols":91,"rows_kept":169,"cut":false,"hidden":false,"merged":[]}
[]
["                   Danske Havesvirrefluer, Syrphus (Diptera: Syrphidae) "]
[null,null,null,null,null,null,"Bent Haagen Petersen"]
[]
["Havesvirrefluerne er nogle af vore almindeligste svirrefluer. En undtagelse er dog den nyere og sjældne"]
["S. nitidifrons, som ikke har gule båmd på bagkroppen, men har parvise gule pletter. Dens mundkant og ",null,null,null,null,null,null,null,null,null,null,null,null,null,null,null,null,null,null,null,null,null,null,null,null,null,null,null,"  Fig 1"]
["underkinder er sorte, panden sortskinnende. De tre arter med gule bånd på bagkropsleddene, S. ribesii, ",null,null,null,null,null,null,null,null,null,null,null,null,null,null,null,null,null,null,null,null,null,null,null,null,null,null,null,null,null,null,null,null,0]
["S. torvus og S. vitripennis, kendes på, at båndene er moustache-formede (fig.1), hvor de i siderne buer  ",null,null,null,null,null,null,null,null,null,null,null,null,null,null,null,null,null,null,null,null,null,null,null,null,null,null,null,null,null,null,null,null,0]
["op i forhjørnerne. Bagkroppens sidekanter er randede og har ret lange både gule og sorte hår på sidekan-  "]
["ten (fig. 2).  Brystet er messingfarvet mat, ofte med et pår utydelige striber fortil. Brystskællet er på",null,null,null,null,null,null,null,null,null,null,null,null,null,null,null,null,null,null,null,null,null,null,null,null,null,null,null,null,null,null,null,null,0]
["oversiden behåret, hvilket er karakteristisk for kun Syrphus-slægten, men på billeder skal man være ",null,null,null,null,null,null,null,null,null,null,null,null,null,null,null,null,null,null,null,null,null,null,null,null,null,null,null,"  Fig 2",null,null,null,null,0]
["meget heldig for at kunne se det. Ansigtet er gult uden sort midterstribe. Følehorn lyse eller mørke.",null,null,null,null,null,null,null,null,null,null,null,null,null,null,null,null,null,null,null,null,null,null,null,null,null,null,null,null,null,null,null,null,0]
["Øjnene er hos S. ribesii, S. vitripennis og S. nitidifrons ubehårede.  S. torvus har behårede øjne, der  "]
["på gode billeder ofte er synlige hos hanner. Hos hunner er de meget utydelige og ofte slet ikke  til at få",null,null,null,null,null,null,null,null,null,null,null,null,null,null,null,null,null,null,null,null,null,null,null,null,null,null,null,null,null,null,null,null,0]
["øje på. Med stor forstørrelse er forskelle i behåring på vingernes 2. basalcelle et sikkert kendetegn. ",null,null,null,null,null,null,null,null,null,null,null,null,null,null,null,null,null,null,null,null,null,null,null,null,null,null,null,null,null,null,null,null,0]
["Syrphus-arter kan forveksles med arter i andre slægter: Epistrophe kendes på  bagkroppens gule bånd, ",null,null,null,null,null,null,null,null,null,null,null,null,null,null,null,null,null,null,null,null,null,null,null,null,null,null,null,"  Fig .3",null,null,null,null,0]
["som har fuld bredde ved sidekanterne (fig. 3). Det samme gælder den store Megasyrphus erraticus,"]
[" som tillige har kulsort brystoverside og bue på længste vingeåre. Eupeodes kendes  på sidekanternes",null,null,null,null,null,null,null,null,null,null,null,null,null,null,null,null,null,null,null,null,null,null,null,null,null,null,null,null,null,null,null,null,0]
["korte udelukkende sorte behåring (fig. 4). Arter i Parasyrphus kendes på bagkroppens  indrullede ",null,null,null,null,null,null,null,null,null,null,null,null,null,null,null,null,null,null,null,null,null,null,null,null,null,null,null,null,null,null,null,null,0]
["sidekanter (fig. 5). Nogle af Parasyrphus-arterne har bagskinnebenene næsten helt sorte. P. vittiger har",null,null,null,null,null,null,null,null,null,null,null,null,null,null,null,null,null,null,null,null,null,null,null,null,null,null,null,null,null,null,null,null,0]
["kun en  sort ring på bagskinnebenet, men den har sort ansigtsstribe. P. nigritarsis kendes på de meget"]
["brede gule bånd og de helt sorte fødder på alle ben i kontrast til de gule skinneben.",null,null,null,null,null,null,null,null,null,null,null,null,null,null,null,null,null,null,null,null,null,null,null,null,null,null,null,"  Fig. 4",null,null,null,null,0]
[" ",null,null,null,null,null,null,null,null,null,null,null,null,null,null,null,null,null,null,null,null,null,null,null,null,null,null,null,null,null,null,null,null,0]
[null,null,null,null,null,null,null,null,null,null,null,null,null,null,null,null,null,null,null,null,null,null,null,null,null,null,null,null,null,null,null,null,null,0]
[null,"Sådan bruger man bedst nøglen"]
["Nøglen er specielt konstrueret til brug ved bestemmelse af fluer på billeder. Den bruger samme kendetegn",null,null,null,null,null,null,null,null,null,null,null,null,null,null,null,null,null,null,null,null,null,null,null,null,null,null,null,null,null,null,null,null,0]
["som de almindelige nøgler. Blot er man ikke nødt til at gå frem i nøglen i en given rækkefølge, som man ",null,null,null,null,null,null,null,null,null,null,null,null,null,null,null,null,null,null,null,null,null,null,null,null,null,null,null,"  Fig. 5",null,null,null,null,0]
["jo skal i de almindelige nøgler. Det er en fordel, da der på billeder som regel er kendetegn, der ikke er syn-",null,null,null,null,null,null,null,null,null,null,null,null,null,null,null,null,null,null,null,null,null,null,null,null,null,null,null,null,null,null,null,null,0]
["lige. Med nøglen her klikker man i helt vilkårlig rækkefølge på de kendetegn, man kan se på billedet. Man"]
["behøver altså ikke starte med øverste nøglespørgsmål. Det er altid bedst at starte med kendetegn, som er",null,null,null,null,null,null,null,null,null,null,null,null,null,null,null,null,null,null,null,null,null,null,null,null,null,null,null,null,null,null,null,null,0]
["mest tydelige på billedet. Hver gang man klikker på et kendetegn, vises dette på et billede. Klikker man på",null,null,null,null,null,null,null,null,null,null,null,null,null,null,null,null,null,null,null,null,null,null,null,null,null,null,null,null,null,null,null,null,0]
["et kendetegn, der ikke passer med nøglens, gør nøglen opmærksom på, at en bestemmelse da næppe vil"]
["være mulig."]
[]
["I takt med, at mn klikker på kendetegn, kan man på oversigten over arterne se, at antallet af mulige arter"]
["bliver mindre. Når man frem til, at der kun er et navn tilbage i artsoversigten, skriver nøglen, at fluen nu er  "]
["bestemt, og dens navn vises øverst på skemaet. Derefter bør man klikke på fluens navn i artsoversigten for"]
["at læse beskrivelsen af fluen. Samtidig hermed vises et billede af arten. Er man derefter helt sikker på be- "]
["stemmelsen, ken man indrapportere observationennen. Er man ikke særlig øvet i at bestemme fluer, bør man"]
["sikre sig, at bestemmelsen er rigtig ved først at vise den i Fugle&Naturs Tovinge-forum."]
[]
[null,null,null,null,null,null,null,null,null,null,null,null,null,null,null,null,null,null,null,null,null,null,null,null,null,null,null,null,null,null,null,null,null,null," "," ",null,null,null,null,null,null,null,null,null,null,null," ",null," ",null,null,null,null,null,null,null,null,null,null,0]
[]
["                Nøgle til danske Havesvirrefluer, Syrphus (Diptera: Syrphidae) "]
[null,null,null,null,null,null,null," ",null,null,null," ",null," ",null," "]
[null,null,null,null,"   HANNER",null,null,null,null,null,null,null,null,null,null,null,null,null,{"$f":"IF(AM50=1,VLOOKUP(AM49,AM51:AN62,2,FALSE),\"      Syrphus sp.\")","v":"Syrphus vitripennis "},null,null,null,null,null,null,null,"Han",null,null,null,null,null,null,null,8,null,null,null,null,null,null,null,null,null,null,null,null,"*"," ","* "," ",null,"*",null,"*",null,"*",null,"*",null,"*",null,"*",null,"*",null,"*"]
[" ","Øjne sammenstødende",null,null,null,null,null,null,null,null,null,null,null,null,null,null,null,null,{"$f":"IF(AM50=1,VLOOKUP(AM49,AM64:AN75,2,FALSE), AN76)","v":"    Lille Havesvirreflue"},null,null,null,null,null,null,null,null,null,null,null,null,null,null,null,null,null,null,null,{"$f":"SUM(AV47+AX47+BA47+BC47+BE47+BG47+BI47+BK47+BM47+BO47)","v":4},"Afkrydsede felter *",null,null,null,null,null,null,null,{"$f":"IF(AW47=0,0,1)","v":1},{"$f":"SUM(AV48:AW48)","v":1},{"$f":"IF(AZ47=0,0,1)","v":1},null,{"$f":"+AX48+AY48+AZ48","v":1},{"$f":"IF(BB47=0,0,1)","v":1},{"$f":"SUM(BA48:BB48)","v":1},{"$f":"IF(BD47=0,0,1)","v":1},{"$f":"SUM(BC48:BD48)","v":1},{"$f":"IF(BF47=0,0,1)","v":0},{"$f":"SUM(BE48:BF48)","v":0},{"$f":"IF(BH47=0,0,1)","v":0},{"$f":"SUM(BG48:BH48)","v":0},{"$f":"IF(BJ47=0,0,1)","v":0},{"$f":"SUM(BI48:BJ48)","v":0},{"$f":"IF(BL47=0,0,1)","v":0},{"$f":"+BK48+BL48","v":0},{"$f":"IF(BN47=0,0,1)","v":0},{"$f":"+BM48+BN48","v":0},{"$f":"IF(BP47=0,0,1)","v":0},{"$f":"+BO48+BP49","v":0}]
["Bagkrop  med gule moustache-formede bånd ?",null,null,null,null,null,null,null,null,null,null," ",null,null,null,null,null,null,null,null,null,null,null,null,null,null,null,null,null,null,null,null,null,null,{"$f":"IF(AJ48= TRUE,\"x\",\" \")","v":"x"},true,null,null,null,null,null,null,null,null,null,null,null,{"$f":"IF(AI48=\" \",0,1)","v":1},{"$f":"IF(AI49=\" \",0,1)","v":0},{"$f":"IF(AI51=\" \",0,1)","v":0},{"$f":"IF(AI52=\" \",0,1)","v":0},{"$f":"IF(AI53=\" \",0,1)","v":1},{"$f":"IF(AI55=\" \",0,1)","v":1},{"$f":"IF(AI56=\" \",0,1)","v":0},{"$f":"IF(AI57=\" \",0,1)","v":1},{"$f":"IF(AI59=\" \",0,1)","v":0},{"$f":"IF(AI60=\" \",0,1)","v":0},{"$f":"IF(AI61=\" \",0,1)","v":0},{"$f":"IF(AI63=\" \",0,1)","v":0},{"$f":"IF(AI64=\" \",0,1)","v":0},{"$f":"IF(AI65=\" \",0,1)","v":0},{"$f":"IF(AI67=\" \",0,1)","v":0},{"$f":"IF(AI68=\" \",0,1)","v":0},{"$f":"IF(AI69=\" \",0,1)","v":0},{"$f":"IF(AI71=\" \",0,1)","v":0},{"$f":"IF(AI72=\" \",0,1)","v":0},{"$f":"IF(AI74=\" \",0,1)","v":0},{"$f":"IF(AI75=\" \",0,1)","v":0}]
["      -        med tydeligt adskilte gule pletter ?",null,null,null,null,null,null,null,null,null,null," ",null,null,{"$f":"IF(AM50=1,\"              Fluen er nu bestemt. Se ovenfor.\",\" \")","v":"              Fluen er nu bestemt. Se ovenfor."},null,null,null,null,null,null,null,null,null,null,null,null,null,null,null,null,null,null,null,{"$f":"IF(AJ49=TRUE,\"x\",\" \")","v":" "},0,null,null,{"$f":"MAX(AM51:AM54)","v":4},"Maks.",null,null,null,null,null,null,null,null,null,null,null,null,null,null,null," "]
["Baglår sorte på inderste halvdel ?",null,null,null,null,null,null,null,null,null,null," ",null,null,{"$f":"IF(AM50=1,\" \",IF(AM47=AM49,\"      Se de mulige arter  i oversigten nedenfor.\",\" \"))","v":" "},null,null,null,null,null,null,null,null,null,null,null,null,null,null,null,null,null,null,null,null,null,null,null,{"$f":"COUNTIF(AM51:AM62,AM49)","v":1},"Ant. Maks"]
["   -       sorte på inderste 1/2 - 2/3 ?",null,null,null,null,null,null,null,null,null,null,null,null,null,null,null,null,null,null,null,null,null,null,null,null,null,null,null,null,null,null,null,null,null,{"$f":"IF(AJ51= TRUE,\"x\",\" \")","v":" "},0,null,null,{"$f":"SUM(AV51:BP51)","v":0},"Syrphus nitidifrons",null,null,null,null,null,null,null,null,{"$f":"IF($AI$49=\"x\",1,\" \")","v":" "},{"$f":"IF(AI51=\"x\",1,\" \")","v":" "},null,null,null,{"$f":"IF(AI56=\"x\",1,\" \")","v":" "},null,{"$f":"IF($AI$59=\"x\",1,\" \")","v":" "},null,{"$f":"IF($AI$61=\"x\",1,\" \")","v":" "},{"$f":"IF($AI$63=\"x\",1,\" \")","v":" "},null,null,{"$f":"IF($AI$67=\"x\",1,\" \")","v":" "},{"$f":"IF($AI$68=\"x\",1,\" \")","v":" "},null,{"$f":"IF($AI$71=\"x\",1,\" \")","v":" "},null,{"$f":"IF($AI$74=\"x\",1,\" \")","v":" "}]
["    -      sorte på inderste 3/4 - 4/5 ?",null,null,null,null,null,null,null,null,null,null,null,null,null,{"$f":"IF(AM47>AM49,\"  Afkrydsede kendetegn passer ikke med nøglens.\",\" \")","v":" "},null,null,null,null,null,null,null,null,null,null,null,null,null,null,null,null,null,null,null,{"$f":"IF(AJ52= TRUE,\"x\",\" \")","v":" "},0,null,null,{"$f":"SUM(AV52:BP52)","v":1},"Syrphus ribesii ",null,null,null,null,null,null,null,{"$f":"IF($AI$48=\"x\",1,\" \")","v":1},null,{"$f":"IF(AI51=\"x\",1,\" \")","v":" "},{"$f":"IF($AI$52=\"x\",1,\" \")","v":" "},null,null,{"$f":"IF(AI56=\"x\",1,\" \")","v":" "},null," ",null," ",null,{"$f":"IF($AI$64=\"x\",1,\" \")","v":" "},{"$f":"IF($AI$65=\"x\",1,\" \")","v":" "},{"$f":"IF($AI$67=\"x\",1,\" \")","v":" "},null,{"$f":"IF($AI$69=\"x\",1,\" \")","v":" "}," ",null,null,{"$f":"IF(AI75=\"x\",1,\" \")","v":" "}]
["For- og mellemlår sorte på inderste fjerdedel ?",null,null,null,null,null,null,null,null,null,null,null,null,null,{"$f":"IF(AM47>AM49,\"  Det gør en bestemmelse tvivlsom.    Prøv igen !\",\" \")","v":" "},null,null,null,null,null,null,null,null,null,null,null,null,null,null,null,null,null,null,null,{"$f":"IF(AJ53= TRUE,\"x\",\" \")","v":"x"},true,null,null,2,"  Syrphus torvus ",null,null,null,null,null,null,null,1,null,null," ",{"$f":"IF($AI$53=\"x\",1,\" \")","v":1},null,{"$f":"IF(AI56=\"x\",1,\" \")","v":" "},null," ",{"$f":"IF($AI$60=\"x\",1,\" \")","v":" "},null,{"$f":"IF($AI$63=\"x\",1,\" \")","v":" "},{"$f":"IF($AI$64=\"x\",1,\" \")","v":" "},{"$f":"IF($AI$65=\"x\",1,\" \")","v":" "},null,null," "," ",null,null,{"$f":"IF($AI$75=\"x\",1,\" \")","v":" "}]
["   -       sorte på inderste 1/ 3- 1/2 ?",null,null,null,null,null,null,null,null,null,null,null,null,"            Vil du læse om en art, så klik på dens nummer.",null,null,null,null,null,null,null,null,null,null,null,null,null,null,null,null,null,null,null,null," ",null,null,null,4,"Syrphus vitripennis ",null,null,null,null,null,null,null,{"$f":"IF($AI$48=\"x\",1,\" \")","v":1},null,null,null,{"$f":"IF($AI$53=\"x\",1,\" \")","v":1},{"$f":"IF($AI$55=\"x\",1,\" \")","v":1},null,{"$f":"IF($AI$57=\"x\",1,\" \")","v":1},null,null,{"$f":"IF($AI$61=\"x\",1,\" \")","v":" "},null,{"$f":"IF($AI$64=\"x\",1,\" \")","v":" "},null," ",null,{"$f":"IF($AI$69=\"x\",1,\" \")","v":" "},null,{"$f":"IF($AI$72=\"x\",1,\" \")","v":" "},null,{"$f":"IF($AI$75=\"x\",1,\" \")","v":" "}]
["For- og mellemfødder gullige, 2.-5. led smalt sorte på basis ?    ",null,null,null,null,null,null,null,null,null,null," ",null,null,null,null,null,null,null,null,null,null,null,null,null,null,null,null,null,null," ",null,null,null,{"$f":"IF(AJ55= TRUE,\"x\",\" \")","v":"x"},true,null,null,0]
["          -",null,null,null,"sorte, sortbrune, mellemfødders 1. led ofte lysere ?",null,null,null,null,null,null," ",null,null,null,null,{"$f":"IF(AM51=AM49,\"Syrphus nitidifrons\",\" \")","v":" "},null,null,null,null,null,null,{"$f":"IF(AM51=AM49,\"Skinnende Havesvirreflue\",\" \")","v":" "},null,null,null,null,null,null,null,null,null,null,{"$f":"IF(AJ56= TRUE,\"x\",\" \")","v":" "},false,null,null,0]
["Øjne behårede ?",null,null,null,null,null,null,null,null,null,null,null,null,null,null,null,{"$f":"IF(AM52=AM49,\"Syrphus ribesii\",\" \")","v":" "},null,null,null,null,null,null,{"$f":"IF(AM52=AM49,\"Almindelig Havesvirreflue\",\" \")","v":" "},null,null,null,null,null,null,null,null,null,null,{"$f":"IF(AJ57= TRUE,\"x\",\" \")","v":"x"},true,null,null,0]
["   -     uden synlige hår ?",null,null,null,null,null,null,null,null,null,null," ",null,null,null,null,{"$f":"IF(AM53=AM49,\"Syrphus torvus\",\" \")","v":" "},null,null,null,null,null,null,{"$f":"IF(AM53=AM49,\"Stor Havesvirreflue\",\" \")","v":" "},null,null,null,null,null,null,null,null,{"$f":"VLOOKUP(E82,E86:F106,2)","v":"           Gule for- og mellemfødder"},null," ",null,null,null,0]
["Kinder mere eller mindre sorte eller gråligt bestøvede ?",null,null,null,null,null,null,null,null,null,null," ",null,null,null,null,{"$f":"IF(AM54=AM49,\"Syrphus vitripennis\",\" \")","v":"Syrphus vitripennis"},null,null,null,null,null,null,{"$f":"IF(AM54=AM49,\"Lille Havesvirreflue\",\" \")","v":"Lille Havesvirreflue"},null,null,null,null,null,null,null,null,null,null,{"$f":"IF(AJ59= TRUE,\"x\",\" \")","v":" "},false,null,null,0]
["                -             gule som ansigt ?   ",null,null,null,null,null,null,null,null,null,null," ",null,null,null,null,null,null,null,null,null,null,null,null,null,null,null,null,null,null,null,null,null,null,{"$f":"IF(AJ60= TRUE,\"x\",\" \")","v":" "},false,null,null,0]
["3. følehornsled sortbrunt, underst ved basis måske lysere ?",null,null,null,null,null,null,null,null,null,null," ",null,null,null,null,null,null,null,null,null,null,null,null,null,null,null,null,null,null,null,null,null,null,{"$f":"IF(AJ61= TRUE,\"x\",\" \")","v":" "},false,null,null,0]
["             -          mindre mørkt, underst ved basis gulligt ?",null,null,null,null,null,null,null,null,null,null," ",null,null,null,null,null,null,null,null,null,null,null,null,null,null,null,null,null,null,null,null,null,null," ",null,null,null,0]
["Pande sort uden eller med svag bestøvning ?",null,null,null,null,null,null,null,null,null,null," ",null,null,null,null,null,null,null,null,null,null,null,null,null,null,null,null,null,null,null,null,null,null,{"$f":"IF(AJ63= TRUE,\"x\",\" \")","v":" "},false]
["    -      delvis gul, måske delvis med tydelig hvidgul bestøvning ?",null,null,null,null,null,null,null,null,null,null," ",null,null,null,null,null,null,null,null,null,null,null,null,null,null,null,null,null,null,null,null,null,null,{"$f":"IF(AJ64= TRUE,\"x\",\" \")","v":" "},false,null,null,{"$f":"SUM(AV51:BP51)","v":0},"   Skinnende Havesvirreflue",null,null,null,null,null,null,null,null,null,null,null,null,null,null,null,null,null,1,"Eristalis abusiva."]
["Baglår yderst med sorte hår på oversiden ?",null,null,null,null,null,null,null,null,null,null," ",null,null,null,null,null,null,null,null,null,null,null,null,null,null,null,null,null,null,null,null,null,null,{"$f":"IF(AJ65= TRUE,\"x\",\" \")","v":" "},0,null,null,1," Almindelig  Havesvirreflue",null,null,null,null,null,null,null,null,null,null,null,null,null,null,null,null,null,2,"Eristalis anthophorina."]
["      -              med gule hår på oversiden, måske også få sorte ?",null,null,null,null,null,null,null,null,null,null,null,null,null,null,null,null,null,null,null,null,null,null,null,null,null,null,null,null,null,null,null,"         Her skal billeder vises",null," ",null,null,null,2,"     Stor Havesvirreflue",null,null,null,null,null,null,null,null,null,null,null,null,null,null,null,null,null,3,"Eristalis arbustorum."]
["Mundkant bredt sort ?",null,null,null,null,null,null,null,null,null,null,null,null,null,null,null,null,null,null,null,null,null,null,null,null,null,null,null,null,null,null,null,null,null,{"$f":"IF(AJ67= TRUE,\"x\",\" \")","v":" "},false,null,null,4,"    Lille Havesvirreflue",null,null,null,null,null,null,null,null,null,null,null,null,null,null,null,null,null,4,"Eristalis cryptarum."]
["          -      gul ?",null,null,null,null,null,null,null,null,null,null,null,null,null,null,null,null,null,null,null,null,null,null,null,null,null,null,null,null,null,null,null,null,null,{"$f":"IF(AJ68= TRUE,\"x\",\" \")","v":" "},0,null,null,0,null,null,null,null,null,null,null,null,null,null,null,null,null,null,null,null,null,null,5,"Eristalis interrupta."]
[null,null,null,null,null,null,null,null,null,null,null,null,null,null,null,null,null,null,null,null,null,null,null,null,null,null,null,null,null,null,null,null,null,null,{"$f":"IF(AJ69= TRUE,\"x\",\" \")","v":" "},false,null,null,0,null,null,null,null,null,null,null,null,null,null,null,null,null,null,null,null,null,null,6,"Eristalis intricaria."]
[null,null,null,null,null,"           Når man skal vurdere bredden af sort ",null,null,null,null,null,null,null,null,null,null,null,null,null,null,null,null,null,null,null,null,null,null,null,null,null,null,null,null," ",null,null,null,0,null,null,null,null,null,null,null,null,null,null,null,null,null,null,null,null,null,null,7,"Eristalis lineata."]
["  ",null,null,null,null,"           på lårenes basis, er det vigtigt, at man",null,null,null,null,null,null,null,null,null,null,null,null,null,null,null,null,null,null,null,null,null,null,null,null,null,null,null,null,{"$f":"IF(AJ71= TRUE,\"x\",\" \")","v":" "},0,null,null,0,null,null,null,null,null,null,null,null,null,null,null,null,null,null,null,null,null,null,8,"Eristalis oestracea."]
[" ",null,null,null,null,"           ikke kommer til at tælle den altid sorte",null,null,null,null,null,null,null,null,null,null,null,null,null,null,null,null,null,null,null,null,null,null,null,null,null,null,null,null,{"$f":"IF(AJ72= TRUE,\"x\",\" \")","v":" "},false,null,null,0,null,null,null,null,null,null,null,null,null,null,null,null,null,null,null,null,null,null,9,"Eristalis pertinax."]
[null,null,null,null,null,"           hoftering med.",null,null,null,null,null,null,null,null,null,null,null,null,null,null,null,null,null,null,null,null,null,null,null,null,null,null,{"$f":"VLOOKUP(K82,O86:P89,2)","v":"Syrphus vitripennis"},null,null,null,null,null,0,null,null,null,null,null,null,null,null,null,null,null,null,null,null,null,null,null,null,10,"Eristalis rupium gruppe."]
[null,null,null,null,null,null,null,null,null,null,null,null,null,null,null,null,null,null,null,null,null,null,null,null,null,null,null,null,null,null,null,null,null,null,{"$f":"IF(AJ74= TRUE,\"x\",\" \")","v":" "},0,null,null,0,null,null,null,null,null,null,null,null,null,null,null,null,null,null,null,null,null,null,11,"Eristalis similis."]
[null,null,null,null,null,null,null,null,null,null,null,null,null,null,null,null,null,null,null,null,null,null,null,null,null,null,null,null,null,null,null,null,null,null,{"$f":"IF(AJ75= TRUE,\"x\",\" \")","v":" "},false,null,null,0,null,null,null,null,null,null,null,null,null,null,null,null,null,null,null,null,null,null,12,"Eristalis tenax."]
[null,null,null,null,null,null,null,null,null,null,null,null,null,null,null,null,null,null,null,null,null,null,null,null,null,null,null,null,null,null,null,null,null,null,null,null,null,null,null,"       Havesvirreflue"]
[]
[null,null,null,null,null,null,null,null,"   "]
[]
[]
[]
[null,null,null,null,{"$f":"AI46","v":8},"     Kendetegn ",null,null,null,null,{"$f":"AL91","v":4},null,null,"Billeder af arter"]
[]
[]
[]
[null,null,null,null,1,"              Moustache-formede bånd",null,null,null,null,null,1,"              Syrphus nitidifrons",null,1," Syrphus nitidifrons, (hun)"]
[null,null,null,null,2,"              Tydeligt adskilte pletter",null,null,null,null,null,2,"                    Syrphus ribesii",null,2,"Syrphus ribesii"]
[null,null,null,null,3,"         Baglår sorte på inderste halvdel",null,null,null,null,null,3,"                  Syrphus torvus",null,3,"Syrphus torvus",null,null,null,null,null,null,null,null,null,null,null,null,null,null,null,null,null,null,null," "]
[null,null,null,null,4,"        Baglår sorte på inderste 1/2 - 2/3",null,null,null,null,null,4,"                Syrphus vitripennis",null,4,"Syrphus vitripennis"]
[null,null,null,null,5,"        Baglår sorte på inderste 3/4 - 4/5"]
[null,null,null,null,6,"               Forlår gule på inderste 1/4",null,null,null,null,null,null,null,null,null,null,null,null,null,null,null,null,null,null,null,null,null,null,null,null,null,null,null,null,null,null," ",4]
[null,null,null,null,7,"         Forlår sorte på inderste 1/2 - !/3",null,null,null,null,null,null,null,null,null,null,null,null,null,null,null,null,null,null,null,null,null,null,null,null,null,null,null,null,null,null," "]
[null,null,null,null,8,"           Gule for- og mellemfødder",null,null,null,null,null,null,null,null,null,null,null,null,null,null,null,null,null,null,null,null,null,null,null,null,null,null,null,null,null,null," "]
[null,null,null,null,9,"          Mørke for- og mellemfødder"]
[null,null,null,null,10,"                       Øjne behårede"]
[null,null,null,null,11,"                        Øjne uden hår"]
[null,null,null,null,12,"               Kinder mørke under øje"]
[null,null,null,null,13,"               Kinder gule under øje"]
[null,null,null,null,14,"                    Mørke følehorn"]
[null,null,null,null,15,"                    Lyse følehorn",null,null,null,null,null,null,null,null,null,null,null,null,null,null,null,null,null,null,null,null,null,null,null,null,null,null,null,null,null,null," "]
[null,null,null,null,16,"        Sort pande (Billedet viser hun)"]
[null,null,null,null,17,"                   Delvis gul pande"]
[null,null,null,null,18,"  Sorte hår yderst på baglårs overflade"]
[null,null,null,null,19,"   Gule hår yderst på baglårs overflade"]
[null,null,null," ",20,"                      Sort mundkant"]
[null,null,null," ",21,"                      Gul mundkant"]
[null,null,null," "]
[null,null,null," "]
[null,null,null," "]
[null,null,null," "]
[null,null,null," ",null,null,null,null,null,null,null,null,null,null,null,null,null,null,null,null,null,null,null,null,null,null,null,null,null,null,null,null,null,null,null,null,null,null,null,null,null,null,null,null,null,null,null,null,null,null,null,null,null,null,null,null,null,null,null,null,null,null,null,null,null,null,null,null,null,null,null,null,null,null,null,null,null,null,null,null,null,null,null,null,null,null,null,null,null,{"$f":"SUM(K82)","v":4},{"$f":"VLOOKUP(CL111,'Ark3'!B1:C7,2,FALSE)","v":"ARK3!A4"}]
[null,null,null," ",null,null,null,null,null,null,null,null,null,null,null,"Lopslag for teksterne bruger CK111 og CL111 og CM111 sammen med K82 , der er lig alternativknapperne( AL91)",null,null,null,null,null,null,null,null,null,null,null,null,null,null,null,null,null,null,null,null,null,null,null,null,null,null,null,null,null,null,null,null,null,null,null,null,null,null,null,null,null,null,null,null,null,null,null,null,null,null,null,null,null,null,null,null,null,null,null,null,null,null,null,null,null,null,null,null,null,null,null,null,null,{"$f":"SUM(K82)","v":4},{"$f":"VLOOKUP(CL112,'Ark2'!G1:H7,2,FALSE)","v":"Ark2!F4"}]
[null,null,null," ",null,null,null,null,null,null,null,null,null,null,null,"Lopslag for kendetegnbillede bruger CK113 og CL113 og CM113 sammen med AI46 , der er lig checkboxene",null,null,null,null,null,null,null,null,null,null,null,null,null,null,null,null,null,null,null,null,null,null,null,null,null,null,null,null,null,null,null,null,null,null,null,null,null,null,null,null,null,null,null,null,null,null,null,null,null,null,null,null,null,null,null,null,null,null,null,null,null,null,null,null,null,null,null,null,null,null,null,null,null,{"$f":"SUM(AI46)","v":8},{"$f":"VLOOKUP(CL113,'Ark2'!L1:M21,2,FALSE)","v":"Ark2!K8"}]
[null,null,null," ",null,null,null,null,null,null,null,null,null,null,null,"Lopslag for billede1(ark 2, F1 til F4)  bruger CK112 og CL112 og CM112 sammen med K82 , der er lig alternativknapperne(AL91)"]
[null,null,null," ",null,null,null,null,null,null,null,null,null,null,null,"flag3 er for kendetegnbillede;flag2 er for 1. billede;flag1 er for teksterne"]
[null,null,null," "]
[null,null,null," "]
[null,null,null," "]
[null,null,null," "]
[null,null,null," "]
[null,null,null," "]
[null,null,null," "]
[]
[null,null,null,null,null,null,null,null,null,null,null,null,null,null,null,null,null,null,null,null,null,null,null,null,null,null,null,null,null,null,null,null,null,null," "]
[]
[]
[]
[]
[]
[]
[]
[]
[null,null,null,null,null,null,null,null,null,null,null,null,null,null,null,null,null,null,null,null,null,null,null,null,null,null,null,null,null,null,null,null,null," "]
[]
[null,null,null,null,null,null,null,null,null,null,null,null,null,null,null,null,null,null,null,null,null,null,null,null,null,null,null,null,null,null,null,null,null,null,null," "]
[]
[]
[]
[]
[]
[]
[]
[]
[]
[]
[]
[]
[]
[]
[]
[]
[]
[]
[]
[]
[]
[]
[]
[]
[]
[]
[]
[]
[]
[]
[]
[]
[]
[null,null,null,null,null,null,null,null,null,null,null,null,null,null,null,null,null,null,null,null,null,null,null,null,null,null,null,null,null,null,null,null,null," "]

{"sheet":"Ark2","index":1,"n_rows":21,"n_cols":13,"rows_kept":21,"cut":false,"hidden":false,"merged":[]}
[null,1,"Ark2!A1",null,null,null,1,"Ark2!F1",null,null,null,1,"Ark2!K1"]
[null,2,"Ark2!A2",null,null,null,2,"Ark2!F2",null,null,null,2,"Ark2!K2"]
[null,3,"Ark2!A3",null,null,null,3,"Ark2!F3",null,null,null,3,"Ark2!K3"]
[null,4,"Ark2!A4",null,null,null,4,"Ark2!F4",null,null,null,4,"Ark2!K4"]
[null,5,"Ark2!A5",null,null,null,5,"Ark2!F5",null,null,null,5,"Ark2!K5"]
[null,6,"Ark2!A6",null,null,null,6,"Ark2!F6",null,null,null,6,"Ark2!K6"]
[null,7,"Ark2!A7",null,null,null,7,"Ark2!F7",null,null,null,7,"Ark2!K7"]
[null,8,"Ark2!A8",null,null,null,8,"Ark2!F8",null,null,null,8,"Ark2!K8"]
[null,9,"Ark2!A9",null,null,null,9,"Ark2!F9",null,null,null,9,"Ark2!K9"]
[null,10,"Ark2!A10",null,null,null,10,"Ark2!F10",null,null,null,10,"Ark2!K10"]
[null,11,"Ark2!A11",null,null,null,11,"Ark2!F11",null,null,null,11,"Ark2!K11"]
[null,12,"Ark2!A12",null,null,null,12,"Ark2!F12",null,null,null,12,"Ark2!K12"]
[null,null,null,null,null,null,null,null,null,null,null,13,"Ark2!K13"]
[null,null,null,null,null,null,null,null,null,null,null,14,"Ark2!K14"]
[null,null,null,null,null,null,null,null,null,null,null,15,"Ark2!K15"]
[null,null,null,null,null,null,null,null,null,null,null,16,"Ark2!K16"]
[null,null,null,null,null,null,null,null,null,null,null,17,"Ark2!K17"]
[null,null,null,null,null,null,null,null,null,null,null,18,"Ark2!K18"]
[null,null,null,null,null,null,null,null,null,null,null,19,"Ark2!K19"]
[null,null,null,null,null,null,null,null,null,null,null,20,"Ark2!K20"]
[null,null,null,null,null,null,null,null,null,null,null,21,"Ark2!K21"]

{"sheet":"Ark3","index":2,"n_rows":7,"n_cols":3,"rows_kept":7,"cut":false,"hidden":false,"merged":[]}
[null,1,"ARK3!A1"]
[null,2,"ARK3!A2"]
[null,3,"ARK3!A3"]
[null,4,"ARK3!A4"]
[null,5,"ARK3!A5"]
[null,6,"ARK3!A6"]
[null,7,"ARK3!A7"]

{"sheet":"Ark4","index":3,"n_rows":15,"n_cols":3,"rows_kept":15,"cut":false,"hidden":false,"merged":[]}
[null,1,"ARK4!A1"]
[null,2,"ARK4!A2"]
[null,3,"ARK4!A3"]
[null,4,"ARK4!A4"]
[null,5,"ARK4!A5"]
[null,6,"ARK4!A6"]
[null,7,"ARK4!A7"]
[null,8,"ARK4!A8"]
[null,9,"ARK4!A9"]
[null,10,"ARK4!A10"]
[null,11,"ARK4!A11"]
[null,12,"ARK4!A12"]
[null,13,"ARK4!A13"]
[null,14,"ARK4!A14"]
[null,15,"ARK4!A5"]